[Event "Titled Tuesday Blitz March 07 Late 2023"]
[White "Preotu, Razvan"]
[Black "Fedoseev, Vladimir"]
[WhiteFideId "2613280"]
[BlackFideId "24130737"]
[WhiteElo "2407"]
[BlackElo "2752"]
[Result "0-1"]
[Round "11"]
[TimeControl "180+2"]
[Date "2023.03.07"]
[WhiteClock "0:00:31"]
[BlackClock "0:00:59"]

1. e4 {[%clk 0:03:00]}  e6 {[%clk 0:02:51]} 2. d4 {[%clk 0:03:00]}  d5 {[%clk 0:02:52]} 3. Nc3 {[%clk 0:03:01]}  Nf6 {[%clk 0:02:51]} 4. e5 {[%clk 0:03:01]}  Nfd7 {[%clk 0:02:51]} 5. f4 {[%clk 0:03:02]}  c5 {[%clk 0:02:51]} 6. Nf3 {[%clk 0:03:02]}  Nc6 {[%clk 0:02:50]} 7. Be3 {[%clk 0:03:02]}  a6 {[%clk 0:02:50]} 8. Qd2 {[%clk 0:02:58]}  b5 {[%clk 0:02:50]} 9. Be2 {[%clk 0:02:58]}  c4 {[%clk 0:02:46]} 10. O-O {[%clk 0:02:48]}  Nb6 {[%clk 0:02:47]} 11. Nd1 {[%clk 0:02:38]}  Be7 {[%clk 0:02:41]} 12. c3 {[%clk 0:02:35]}  a5 {[%clk 0:02:35]} 13. Bf2 {[%clk 0:02:32]}  b4 {[%clk 0:02:34]} 14. Ne3 {[%clk 0:02:32]}  h5 {[%clk 0:02:20]} 15. Bd1 {[%clk 0:02:32]}  a4 {[%clk 0:02:16]} 16. a3 {[%clk 0:02:17]}  bxa3 {[%clk 0:02:15]} 17. bxa3 {[%clk 0:02:18]}  Na5 {[%clk 0:02:15]} 18. Bc2 {[%clk 0:02:17]}  Nb3 {[%clk 0:02:14]} 19. Qe2 {[%clk 0:02:17]}  Nxa1 {[%clk 0:02:14]} 20. Rxa1 {[%clk 0:02:18]}  g6 {[%clk 0:02:13]} 21. h4 {[%clk 0:01:34]}  Kd7 {[%clk 0:02:05]} 22. Ng5 {[%clk 0:01:35]}  Qf8 {[%clk 0:02:05]} 23. Qd1 {[%clk 0:01:05]}  Kc7 {[%clk 0:02:03]} 24. Qc1 {[%clk 0:00:57]}  Bd7 {[%clk 0:02:03]} 25. Bd1 {[%clk 0:00:57]}  Qg7 {[%clk 0:01:58]} 26. Nc2 {[%clk 0:00:57]}  Rhb8 {[%clk 0:01:50]} 27. Nb4 {[%clk 0:00:57]}  Kd8 {[%clk 0:01:40]} 28. Bc2 {[%clk 0:00:48]}  Ke8 {[%clk 0:01:39]} 29. Qe3 {[%clk 0:00:44]}  Nc8 {[%clk 0:01:36]} 30. Be1 {[%clk 0:00:44]}  Na7 {[%clk 0:01:34]} 31. Bd2 {[%clk 0:00:44]}  Nc6 {[%clk 0:01:32]} 32. Bc1 {[%clk 0:00:33]}  Na5 {[%clk 0:01:31]} 33. Bd2 {[%clk 0:00:31]}  Nb3 {[%clk 0:01:31]} 34. Rf1 {[%clk 0:00:32]}  Rb5 {[%clk 0:01:03]} 35. Be1 {[%clk 0:00:31]}  Rc8 {[%clk 0:01:02]} 36. Qg3 {[%clk 0:00:31]}  Bxb4 {[%clk 0:01:00]} 37. cxb4 {[%clk 0:00:32]}  Nxd4 {[%clk 0:00:59]} 38. Bxa4 {[%clk 0:00:31]}  Ne2+ {[%clk 0:00:59]} 0-1


[Site "https://www.chess.com"]

[Event "Titled Tuesday Blitz March 07 Late 2023"]
[White "Martinez Alcantara, Jose Eduardo"]
[Black "Liang, Awonder"]
[WhiteFideId "3805662"]
[BlackFideId "2056437"]
[WhiteElo "2712"]
[BlackElo "2508"]
[Result "0-1"]
[Round "11"]
[TimeControl "180+2"]
[Date "2023.03.07"]
[WhiteClock "0:00:11"]
[BlackClock "0:00:10"]

1. e4 {[%clk 0:03:00]}  e5 {[%clk 0:03:00]} 2. Nf3 {[%clk 0:03:01]}  Nc6 {[%clk 0:03:00]} 3. Nc3 {[%clk 0:03:01]}  Nf6 {[%clk 0:02:59]} 4. h3 {[%clk 0:03:02]}  Bb4 {[%clk 0:02:40]} 5. a3 {[%clk 0:03:02]}  Bxc3 {[%clk 0:02:38]} 6. dxc3 {[%clk 0:03:02]}  O-O {[%clk 0:02:38]} 7. Bg5 {[%clk 0:02:57]}  h6 {[%clk 0:02:37]} 8. Bh4 {[%clk 0:02:54]}  g5 {[%clk 0:02:28]} 9. Nxg5 {[%clk 0:02:54]}  hxg5 {[%clk 0:02:28]} 10. Bxg5 {[%clk 0:02:55]}  Kg7 {[%clk 0:02:27]} 11. Qf3 {[%clk 0:02:51]}  d6 {[%clk 0:02:13]} 12. h4 {[%clk 0:02:44]}  Rh8 {[%clk 0:02:08]} 13. Be2 {[%clk 0:02:26]}  Be6 {[%clk 0:01:28]} 14. h5 {[%clk 0:02:11]}  Rh6 {[%clk 0:01:23]} 15. O-O-O {[%clk 0:01:31]}  Qh8 {[%clk 0:01:20]} 16. Qe3 {[%clk 0:01:23]}  Rh7 {[%clk 0:01:16]} 17. f4 {[%clk 0:01:16]}  exf4 {[%clk 0:01:14]} 18. Qxf4 {[%clk 0:01:17]}  Nd7 {[%clk 0:01:11]} 19. Rdf1 {[%clk 0:01:12]}  Kg8 {[%clk 0:00:54]} 20. Qg3 {[%clk 0:01:04]}  Qe5 {[%clk 0:00:47]} 21. Bf4+ {[%clk 0:00:56]}  Qg7 {[%clk 0:00:47]} 22. Qh4 {[%clk 0:00:56]}  Nce5 {[%clk 0:00:41]} 23. g4 {[%clk 0:00:56]}  Kh8 {[%clk 0:00:36]} 24. g5 {[%clk 0:00:50]}  Ng6 {[%clk 0:00:30]} 25. Qg3 {[%clk 0:00:51]}  Nxf4 {[%clk 0:00:30]} 26. Qxf4 {[%clk 0:00:52]}  Rg8 {[%clk 0:00:29]} 27. Rfg1 {[%clk 0:00:46]}  Qe5 {[%clk 0:00:22]} 28. Qd2 {[%clk 0:00:46]}  Rgg7 {[%clk 0:00:10]} 29. g6 {[%clk 0:00:39]}  fxg6 {[%clk 0:00:11]} 30. hxg6 {[%clk 0:00:39]}  Rxh1 {[%clk 0:00:12]} 31. Rxh1+ {[%clk 0:00:40]}  Kg8 {[%clk 0:00:13]} 32. Qh6 {[%clk 0:00:39]}  Kf8 {[%clk 0:00:13]} 33. Qh8+ {[%clk 0:00:17]}  Ke7 {[%clk 0:00:13]} 34. Qa8 {[%clk 0:00:07]}  Qg5+ {[%clk 0:00:09]} 35. Kb1 {[%clk 0:00:06]}  Qxg6 {[%clk 0:00:06]} 36. Bd3 {[%clk 0:00:04]}  b6 {[%clk 0:00:04]} 37. Qxa7 {[%clk 0:00:04]}  Qg2 {[%clk 0:00:02]} 38. Rc1 {[%clk 0:00:04]}  Kd8 {[%clk 0:00:01]} 39. Qa8+ {[%clk 0:00:04]}  Ke7 {[%clk 0:00:02]} 40. Qa7 {[%clk 0:00:05]}  Kd8 {[%clk 0:00:02]} 41. Qa8+ {[%clk 0:00:05]}  Ke7 {[%clk 0:00:03]} 42. Qc8 {[%clk 0:00:05]}  c5 {[%clk 0:00:02]} 43. Qc7 {[%clk 0:00:06]}  Qg3 {[%clk 0:00:02]} 44. a4 {[%clk 0:00:05]}  d5 {[%clk 0:00:02]} 45. Qc6 {[%clk 0:00:04]}  Qd6 {[%clk 0:00:02]} 46. Qb5 {[%clk 0:00:04]}  c4 {[%clk 0:00:02]} 47. Be2 {[%clk 0:00:04]}  dxe4 {[%clk 0:00:03]} 48. Bxc4 {[%clk 0:00:04]}  Qc5 {[%clk 0:00:03]} 49. Bxe6 {[%clk 0:00:01]}  Qxb5 {[%clk 0:00:03]} 50. axb5 {[%clk 0:00:02]}  Kxe6 {[%clk 0:00:03]} 51. Re1 {[%clk 0:00:03]}  Ke5 {[%clk 0:00:04]} 52. Ka2 {[%clk 0:00:03]}  Nc5 {[%clk 0:00:03]} 53. b4 {[%clk 0:00:03]}  Ne6 {[%clk 0:00:04]} 54. Kb3 {[%clk 0:00:04]}  Kf4 {[%clk 0:00:04]} 55. c4 {[%clk 0:00:04]}  e3 {[%clk 0:00:05]} 56. c5 {[%clk 0:00:05]}  bxc5 {[%clk 0:00:06]} 57. bxc5 {[%clk 0:00:05]}  Nxc5+ {[%clk 0:00:06]} 58. Kc4 {[%clk 0:00:06]}  Ne4 {[%clk 0:00:06]} 59. b6 {[%clk 0:00:06]}  Kf3 {[%clk 0:00:06]} 60. Kd5 {[%clk 0:00:04]}  e2 {[%clk 0:00:02]} 61. c4 {[%clk 0:00:03]}  Nc3+ {[%clk 0:00:02]} 62. Kd4 {[%clk 0:00:03]}  Na4 {[%clk 0:00:03]} 63. c5 {[%clk 0:00:03]}  Kf2 {[%clk 0:00:03]} 64. Ra1 {[%clk 0:00:01]}  e1=Q {[%clk 0:00:03]} 65. Rxe1 {[%clk 0:00:02]}  Kxe1 {[%clk 0:00:04]} 66. Kc4 {[%clk 0:00:03]}  Rg5 {[%clk 0:00:03]} 67. b7 {[%clk 0:00:03]}  Rxc5+ {[%clk 0:00:03]} 68. Kb4 {[%clk 0:00:03]}  Rc1 {[%clk 0:00:04]} 69. Ka5 {[%clk 0:00:03]}  Rb1 {[%clk 0:00:04]} 70. Ka6 {[%clk 0:00:04]}  Nc5+ {[%clk 0:00:04]} 71. Ka7 {[%clk 0:00:05]}  Nxb7 {[%clk 0:00:05]} 72. Ka8 {[%clk 0:00:05]}  Nc5 {[%clk 0:00:05]} 73. Ka7 {[%clk 0:00:06]}  Kd2 {[%clk 0:00:06]} 74. Ka8 {[%clk 0:00:07]}  Kd3 {[%clk 0:00:07]} 75. Ka7 {[%clk 0:00:08]}  Kc4 {[%clk 0:00:07]} 76. Ka8 {[%clk 0:00:08]}  Kd5 {[%clk 0:00:08]} 77. Ka7 {[%clk 0:00:09]}  Kc6 {[%clk 0:00:09]} 78. Ka8 {[%clk 0:00:10]}  Kc7 {[%clk 0:00:09]} 79. Ka7 {[%clk 0:00:11]}  Ra1# {[%clk 0:00:10]} 0-1


[Site "https://www.chess.com"]

[Event "Titled Tuesday Blitz March 07 Late 2023"]
[White "Vazquez, Guillermo"]
[Black "Hambleton, Aman"]
[WhiteFideId "3702308"]
[BlackFideId "2606577"]
[WhiteElo "2543"]
[BlackElo "2511"]
[Result "1-0"]
[Round "11"]
[TimeControl "180+2"]
[Date "2023.03.07"]
[WhiteClock "0:01:27"]
[BlackClock "0:00:01"]

1. b3 {[%clk 0:03:00]}  e5 {[%clk 0:02:57]} 2. Bb2 {[%clk 0:03:01]}  Nc6 {[%clk 0:02:58]} 3. c4 {[%clk 0:03:02]}  g6 {[%clk 0:02:43]} 4. e3 {[%clk 0:03:02]}  Bg7 {[%clk 0:02:43]} 5. Nf3 {[%clk 0:03:01]}  d6 {[%clk 0:02:41]} 6. Nc3 {[%clk 0:03:00]}  Nf6 {[%clk 0:02:40]} 7. Be2 {[%clk 0:03:00]}  O-O {[%clk 0:02:38]} 8. O-O {[%clk 0:03:00]}  e4 {[%clk 0:02:33]} 9. Ne1 {[%clk 0:02:54]}  d5 {[%clk 0:02:02]} 10. cxd5 {[%clk 0:02:53]}  Nxd5 {[%clk 0:02:03]} 11. Qc1 {[%clk 0:02:47]}  Nf6 {[%clk 0:01:44]} 12. d3 {[%clk 0:02:36]}  exd3 {[%clk 0:01:40]} 13. Nxd3 {[%clk 0:02:37]}  Bf5 {[%clk 0:01:40]} 14. Rd1 {[%clk 0:02:37]}  Qe7 {[%clk 0:01:39]} 15. Ba3 {[%clk 0:02:34]}  Qe6 {[%clk 0:00:50]} 16. Bxf8 {[%clk 0:02:18]}  Rxf8 {[%clk 0:00:50]} 17. Qd2 {[%clk 0:02:14]}  Ne4 {[%clk 0:00:33]} 18. Nxe4 {[%clk 0:02:13]}  Bxa1 {[%clk 0:00:33]} 19. Nec5 {[%clk 0:01:57]}  Qf6 {[%clk 0:00:32]} 20. Nxb7 {[%clk 0:01:57]}  Bc3 {[%clk 0:00:20]} 21. Qc1 {[%clk 0:01:56]}  Bxd3 {[%clk 0:00:06]} 22. Rxd3 {[%clk 0:01:54]}  Nb4 {[%clk 0:00:01]} 23. Qxc3 {[%clk 0:01:45]}  Qb6 {[%clk 0:00:02]} 24. Rd4 {[%clk 0:01:28]}  Nc6 {[%clk 0:00:01]} 25. Rc4 {[%clk 0:01:27]} 1-0


[Site "https://www.chess.com"]

[Event "Titled Tuesday Blitz March 07 Late 2023"]
[White "Adewumi, Tanitoluwa"]
[Black "Deac, Bogdan-Daniel"]
[WhiteFideId "30966396"]
[BlackFideId "1226380"]
[WhiteElo "2753"]
[BlackElo "2649"]
[Result "0-1"]
[Round "11"]
[TimeControl "180+2"]
[Date "2023.03.07"]
[WhiteClock "0:00:02"]
[BlackClock "0:00:38"]

1. e4 {[%clk 0:02:51]}  c6 {[%clk 0:02:59]} 2. d4 {[%clk 0:02:50]}  d5 {[%clk 0:03:00]} 3. exd5 {[%clk 0:02:51]}  cxd5 {[%clk 0:03:00]} 4. Bd3 {[%clk 0:02:52]}  Nf6 {[%clk 0:03:00]} 5. c3 {[%clk 0:02:52]}  Bg4 {[%clk 0:02:59]} 6. Qb3 {[%clk 0:02:52]}  Qc7 {[%clk 0:03:00]} 7. h3 {[%clk 0:02:52]}  Bd7 {[%clk 0:03:00]} 8. Ne2 {[%clk 0:02:52]}  Nc6 {[%clk 0:03:00]} 9. Bf4 {[%clk 0:02:52]}  e5 {[%clk 0:03:00]} 10. dxe5 {[%clk 0:02:53]}  Nxe5 {[%clk 0:03:01]} 11. O-O {[%clk 0:02:53]}  Bd6 {[%clk 0:02:57]} 12. Bb5 {[%clk 0:02:53]}  Bc6 {[%clk 0:02:52]} 13. Nd4 {[%clk 0:02:47]}  O-O {[%clk 0:02:46]} 14. Nd2 {[%clk 0:02:42]}  a6 {[%clk 0:02:30]} 15. Bxc6 {[%clk 0:02:37]}  bxc6 {[%clk 0:02:30]} 16. Qa4 {[%clk 0:02:28]}  c5 {[%clk 0:02:25]} 17. Nf5 {[%clk 0:02:28]}  Nf3+ {[%clk 0:02:24]} 18. Nxf3 {[%clk 0:02:28]}  Bxf4 {[%clk 0:02:25]} 19. Rad1 {[%clk 0:02:22]}  Rfe8 {[%clk 0:02:08]} 20. Rfe1 {[%clk 0:02:14]}  Re6 {[%clk 0:02:07]} 21. Ne7+ {[%clk 0:01:55]}  Qxe7 {[%clk 0:01:53]} 22. Rxe6 {[%clk 0:01:51]}  Qxe6 {[%clk 0:01:49]} 23. Qxf4 {[%clk 0:01:50]}  a5 {[%clk 0:01:49]} 24. Qc7 {[%clk 0:01:45]}  Qc8 {[%clk 0:01:45]} 25. Qd6 {[%clk 0:01:31]}  Ra6 {[%clk 0:01:43]} 26. Qe7 {[%clk 0:01:30]}  Rb6 {[%clk 0:01:28]} 27. Ne5 {[%clk 0:01:18]}  Rb7 {[%clk 0:01:25]} 28. Qd6 {[%clk 0:01:17]}  h6 {[%clk 0:00:59]} 29. Nc6 {[%clk 0:01:09]}  Kh7 {[%clk 0:00:56]} 30. b3 {[%clk 0:00:19]}  Rd7 {[%clk 0:00:52]} 31. Qxc5 {[%clk 0:00:04]}  Rc7 {[%clk 0:00:51]} 32. Qxa5 {[%clk 0:00:04]}  Rxc6 {[%clk 0:00:51]} 33. c4 {[%clk 0:00:02]}  dxc4 {[%clk 0:00:50]} 34. bxc4 {[%clk 0:00:03]}  Rxc4 {[%clk 0:00:50]} 35. Kh2 {[%clk 0:00:02]}  Qc7+ {[%clk 0:00:46]} 36. Qxc7 {[%clk 0:00:02]}  Rxc7 {[%clk 0:00:47]} 37. Rd2 {[%clk 0:00:03]}  Ra7 {[%clk 0:00:46]} 38. f3 {[%clk 0:00:03]}  Ra5 {[%clk 0:00:44]} 39. Kg3 {[%clk 0:00:04]}  Nd5 {[%clk 0:00:44]} 40. Kf2 {[%clk 0:00:04]}  Nc3 {[%clk 0:00:44]} 41. Ke3 {[%clk 0:00:04]}  Rxa2 {[%clk 0:00:44]} 42. Rxa2 {[%clk 0:00:03]}  Nxa2 {[%clk 0:00:44]} 43. Kd4 {[%clk 0:00:04]}  Kg6 {[%clk 0:00:41]} 44. g3 {[%clk 0:00:03]}  Kf5 {[%clk 0:00:39]} 45. f4 {[%clk 0:00:01]}  h5 {[%clk 0:00:38]} 46. Kc4 {[%clk 0:00:01]}  h4 {[%clk 0:00:38]} 47. gxh4 {[%clk 0:00:02]}  Kxf4 {[%clk 0:00:38]} 0-1


[Site "https://www.chess.com"]

[Event "Titled Tuesday Blitz March 07 Late 2023"]
[White "Grover, Sahaj"]
[Black "Ibarra Jerez, Jose Carlos"]
[WhiteFideId "5021103"]
[BlackFideId "2226332"]
[WhiteElo "2432"]
[BlackElo "2638"]
[Result "1-0"]
[Round "11"]
[TimeControl "180+2"]
[Date "2023.03.07"]
[WhiteClock "0:00:21"]
[BlackClock "0:00:01"]

1. e4 {[%clk 0:03:00]}  c5 {[%clk 0:02:58]} 2. Nf3 {[%clk 0:03:01]}  e6 {[%clk 0:02:58]} 3. d4 {[%clk 0:03:01]}  cxd4 {[%clk 0:02:59]} 4. Nxd4 {[%clk 0:03:02]}  Bc5 {[%clk 0:03:00]} 5. Nc3 {[%clk 0:02:49]}  Qb6 {[%clk 0:02:59]} 6. Be3 {[%clk 0:02:34]}  Nc6 {[%clk 0:02:59]} 7. Na4 {[%clk 0:02:19]}  Qa5+ {[%clk 0:02:59]} 8. c3 {[%clk 0:02:20]}  Bxd4 {[%clk 0:02:59]} 9. Bxd4 {[%clk 0:02:20]}  Nxd4 {[%clk 0:02:59]} 10. Qxd4 {[%clk 0:02:20]}  e5 {[%clk 0:03:00]} 11. Qb4 {[%clk 0:02:16]}  Qxb4 {[%clk 0:03:00]} 12. cxb4 {[%clk 0:02:17]}  Nf6 {[%clk 0:03:00]} 13. Bd3 {[%clk 0:02:15]}  d6 {[%clk 0:02:54]} 14. Rc1 {[%clk 0:02:14]}  Bd7 {[%clk 0:02:51]} 15. Nc3 {[%clk 0:02:14]}  Ke7 {[%clk 0:02:49]} 16. Ke2 {[%clk 0:02:10]}  Rac8 {[%clk 0:02:48]} 17. f3 {[%clk 0:02:07]}  Be6 {[%clk 0:02:48]} 18. a3 {[%clk 0:02:04]}  d5 {[%clk 0:02:48]} 19. exd5 {[%clk 0:01:59]}  Nxd5 {[%clk 0:02:48]} 20. Nxd5+ {[%clk 0:01:56]}  Bxd5 {[%clk 0:02:49]} 21. Rc5 {[%clk 0:01:51]}  Kd6 {[%clk 0:02:34]} 22. Rhc1 {[%clk 0:01:50]}  Be6 {[%clk 0:02:27]} 23. Be4 {[%clk 0:01:48]}  b6 {[%clk 0:02:26]} 24. Rd1+ {[%clk 0:01:30]}  Ke7 {[%clk 0:02:26]} 25. Rxe5 {[%clk 0:01:30]}  f6 {[%clk 0:02:01]} 26. Rh5 {[%clk 0:01:29]}  g6 {[%clk 0:02:01]} 27. Rh4 {[%clk 0:01:26]}  g5 {[%clk 0:01:24]} 28. Rh6 {[%clk 0:01:26]}  Kf7 {[%clk 0:01:14]} 29. h4 {[%clk 0:01:26]}  gxh4 {[%clk 0:01:04]} 30. Rxh4 {[%clk 0:01:24]}  h6 {[%clk 0:01:03]} 31. Bd3 {[%clk 0:01:11]}  Rcd8 {[%clk 0:00:55]} 32. Rc1 {[%clk 0:01:05]}  Rd7 {[%clk 0:00:52]} 33. Rc3 {[%clk 0:00:54]}  Rhd8 {[%clk 0:00:49]} 34. Ke3 {[%clk 0:00:45]}  Kg7 {[%clk 0:00:48]} 35. g4 {[%clk 0:00:36]}  Bd5 {[%clk 0:00:46]} 36. Bf5 {[%clk 0:00:34]}  Re7+ {[%clk 0:00:46]} 37. Kf4 {[%clk 0:00:34]}  Bf7 {[%clk 0:00:42]} 38. Rh2 {[%clk 0:00:34]}  Rd4+ {[%clk 0:00:35]} 39. Kg3 {[%clk 0:00:35]}  Bc4 {[%clk 0:00:33]} 40. Rhc2 {[%clk 0:00:33]}  b5 {[%clk 0:00:31]} 41. b3 {[%clk 0:00:34]}  Bf7 {[%clk 0:00:27]} 42. Rc7 {[%clk 0:00:34]}  Rxc7 {[%clk 0:00:21]} 43. Rxc7 {[%clk 0:00:35]}  Kf8 {[%clk 0:00:22]} 44. Rxa7 {[%clk 0:00:33]}  Bxb3 {[%clk 0:00:22]} 45. Rb7 {[%clk 0:00:24]}  Bc4 {[%clk 0:00:20]} 46. Be4 {[%clk 0:00:23]}  Rd2 {[%clk 0:00:16]} 47. Rh7 {[%clk 0:00:23]}  Ra2 {[%clk 0:00:12]} 48. Rxh6 {[%clk 0:00:23]}  Kg7 {[%clk 0:00:13]} 49. Rh7+ {[%clk 0:00:24]}  Kf8 {[%clk 0:00:13]} 50. Ra7 {[%clk 0:00:25]}  Bb3 {[%clk 0:00:11]} 51. Kf4 {[%clk 0:00:24]}  Be6 {[%clk 0:00:10]} 52. Ra6 {[%clk 0:00:23]}  Ke7 {[%clk 0:00:10]} 53. Ra7+ {[%clk 0:00:24]}  Kd6 {[%clk 0:00:10]} 54. Rb7 {[%clk 0:00:23]}  Bc4 {[%clk 0:00:08]} 55. Rb6+ {[%clk 0:00:24]}  Ke7 {[%clk 0:00:09]} 56. Kf5 {[%clk 0:00:24]}  Rxa3 {[%clk 0:00:06]} 57. Rb7+ {[%clk 0:00:24]}  Kd6 {[%clk 0:00:05]} 58. Kxf6 {[%clk 0:00:25]}  Rb3 {[%clk 0:00:04]} 59. g5 {[%clk 0:00:21]}  Rxb4 {[%clk 0:00:05]} 60. g6 {[%clk 0:00:22]}  Ra4 {[%clk 0:00:03]} 61. g7 {[%clk 0:00:22]}  b4 {[%clk 0:00:03]} 62. Rb6+ {[%clk 0:00:21]}  Kd7 {[%clk 0:00:02]} 63. Bc6+ {[%clk 0:00:18]}  Kc7 {[%clk 0:00:02]} 64. Bxa4 {[%clk 0:00:18]}  Kxb6 {[%clk 0:00:03]} 65. Ke7 {[%clk 0:00:18]}  Kc5 {[%clk 0:00:03]} 66. f4 {[%clk 0:00:18]}  Kd4 {[%clk 0:00:01]} 67. f5 {[%clk 0:00:18]}  Ke5 {[%clk 0:00:02]} 68. f6 {[%clk 0:00:19]}  b3 {[%clk 0:00:01]} 69. Bxb3 {[%clk 0:00:19]}  Bxb3 {[%clk 0:00:01]} 70. f7 {[%clk 0:00:20]}  Bxf7 {[%clk 0:00:01]} 71. Kxf7 {[%clk 0:00:21]} 1-0


[Site "https://www.chess.com"]

[Event "Titled Tuesday Blitz March 07 Late 2023"]
[White "Bilych, Olexiy"]
[Black "Yu, Yangyi"]
[WhiteFideId "14156504"]
[BlackFideId "8603820"]
[WhiteElo "2320"]
[BlackElo "2783"]
[Result "0-1"]
[Round "11"]
[TimeControl "180+2"]
[Date "2023.03.07"]
[WhiteClock "0:01:10"]
[BlackClock "0:02:03"]

1. d4 {[%clk 0:03:00]}  Nf6 {[%clk 0:03:00]} 2. c4 {[%clk 0:03:01]}  e6 {[%clk 0:03:00]} 3. Nf3 {[%clk 0:03:01]}  d5 {[%clk 0:03:00]} 4. Nc3 {[%clk 0:03:00]}  h6 {[%clk 0:03:00]} 5. cxd5 {[%clk 0:02:58]}  exd5 {[%clk 0:03:01]} 6. Bf4 {[%clk 0:02:57]}  Bd6 {[%clk 0:03:00]} 7. Bxd6 {[%clk 0:02:54]}  Qxd6 {[%clk 0:03:01]} 8. e3 {[%clk 0:02:54]}  O-O {[%clk 0:03:01]} 9. Be2 {[%clk 0:02:54]}  Bf5 {[%clk 0:02:59]} 10. Qb3 {[%clk 0:02:49]}  Nbd7 {[%clk 0:02:58]} 11. O-O {[%clk 0:02:48]}  a6 {[%clk 0:02:53]} 12. Rac1 {[%clk 0:02:43]}  Rab8 {[%clk 0:02:49]} 13. Rfd1 {[%clk 0:02:37]}  c6 {[%clk 0:02:46]} 14. a4 {[%clk 0:02:24]}  a5 {[%clk 0:02:43]} 15. h3 {[%clk 0:02:11]}  Rfe8 {[%clk 0:02:43]} 16. Bd3 {[%clk 0:01:55]}  Bxd3 {[%clk 0:02:39]} 17. Rxd3 {[%clk 0:01:56]}  Ne4 {[%clk 0:02:39]} 18. Rdd1 {[%clk 0:01:55]}  Ng5 {[%clk 0:02:33]} 19. Nxg5 {[%clk 0:01:51]}  hxg5 {[%clk 0:02:33]} 20. Ne2 {[%clk 0:01:50]}  Nf6 {[%clk 0:02:32]} 21. Ng3 {[%clk 0:01:48]}  g4 {[%clk 0:02:31]} 22. hxg4 {[%clk 0:01:48]}  Nxg4 {[%clk 0:02:31]} 23. Re1 {[%clk 0:01:41]}  Qh6 {[%clk 0:02:31]} 24. Qd1 {[%clk 0:01:38]}  Qh2+ {[%clk 0:02:27]} 25. Kf1 {[%clk 0:01:39]}  Nxe3+ {[%clk 0:02:28]} 26. fxe3 {[%clk 0:01:38]}  Qxg3 {[%clk 0:02:27]} 27. Qf3 {[%clk 0:01:39]}  Qg6 {[%clk 0:02:25]} 28. Kg1 {[%clk 0:01:38]}  Re6 {[%clk 0:02:22]} 29. Rc3 {[%clk 0:01:33]}  Rbe8 {[%clk 0:02:22]} 30. Qf4 {[%clk 0:01:32]}  Rf6 {[%clk 0:02:12]} 31. Qc7 {[%clk 0:01:25]}  Qf5 {[%clk 0:02:12]} 32. Qg3 {[%clk 0:01:22]}  Re4 {[%clk 0:02:06]} 33. Rc2 {[%clk 0:01:21]}  Rg4 {[%clk 0:02:05]} 34. Qb8+ {[%clk 0:01:19]}  Kh7 {[%clk 0:02:05]} 35. Qxb7 {[%clk 0:01:10]}  Qxc2 {[%clk 0:02:03]} 0-1


[Site "https://www.chess.com"]